bitfinex/quotes_SOLUSD_20260224
["timestamp","ask_amount","ask_price","bid_price","bid_amount"]
[1771938177584,45.65673957,76.659,76.628,0.5]
[1771938177768,45.65673957,76.659,76.629,13.04988972]
[1771938177964,32.60795037,76.669,76.63,0.5]
[1771938178169,13.04325142,76.668,76.631,0.5]
[1771938178369,45.65137997,76.668,76.631,0.5]
[1771938180702,11.69161624,76.65,76.624,0.5]
[1771938181573,11.69161624,76.66,76.626,0.5]
[1771938182891,11.69161624,76.65,76.612,0.5]
[1771938183665,13.04478273,76.659,76.621,0.5]
[1771938183885,13.04424972,76.663,76.631,0.5]
[1771938185893,11.69161624,76.66,76.631,0.5]
[1771938186389,13.04308129,76.669,76.633,0.5]
[1771938187470,45.65078453,76.669,76.633,0.5]
[1771938188187,11.69161624,76.66,76.633,0.5]
[1771938190893,13.04467225,76.66,76.635,0.5]
[1771938191688,32.60691015,76.671,76.635,0.5]
[1771938191912,57.34180535,76.67,76.635,0.5]
[1771938193391,13.04291117,76.67,76.641,0.5]
[1771938194191,24.73452741,76.67,76.641,0.5]
[1771938196591,13.04291117,76.67,76.643,0.5]
[1771938197385,24.73452741,76.67,76.643,0.5]
[1771938197695,57.34180535,76.67,76.643,0.5]
[1771938197883,13.04291117,76.67,76.643,0.5]
[1771938198481,97.795792,76.691,76.651,0.5]
[1771938198698,11.69161624,76.69,76.651,0.5]
[1771938198995,45.63768889,76.691,76.661,0.5]
[1771938199505,5.23295171,76.69,76.661,0.5]
[1771938200291,13.03933968,76.691,76.661,0.5]
[1771938200496,13.03797963,76.699,76.671,0.5]
[1771938200688,45.62697987,76.709,76.673,0.5]
[1771938203288,45.62697987,76.709,76.663,32.61014125]
[1771938203289,45.62697987,76.709,76.68,5.23295171]
[1771938203485,13.03458074,76.719,76.691,0.5]
[1771938204200,5.23295171,76.74,76.701,0.5]
[1771938204387,5.23295171,76.75,76.711,0.5]
[1771938204580,5.23295171,76.75,76.721,0.5]
[1771938205187,5.23295171,76.74,76.68,5.23295171]
[1771938205390,5.23295171,76.74,76.674,163.02788427]
[1771938205391,11.66533761,76.74,76.701,0.5]
[1771938205701,11.66533761,76.74,76.7,11.66533761]
[1771938205702,13.03118362,76.739,76.703,0.5]
[1771938205902,13.03118362,76.739,76.695,0.5]
[1771938205903,11.66533761,76.73,76.695,0.5]
[1771938206604,11.66533761,76.72,76.695,0.5]
[1771938207001,11.66533761,76.73,76.695,0.5]
[1771938207507,11.66533761,76.72,76.695,0.5]
[1771938207913,13.03288196,76.729,76.701,0.5]
[1771938209805,11.66533761,76.75,76.711,0.5]
[1771938211310,11.66533761,76.76,76.721,0.5]
[1771938212103,45.59725895,76.759,76.721,0.5]
[1771938212308,11.66533761,76.75,76.721,0.5]
[1771938214713,11.66533761,76.74,76.705,0.5]
[1771938214896,11.66533761,76.73,76.705,0.5]
[1771938216215,11.66533761,76.74,76.705,0.5]
[1771938217217,45.60914267,76.739,76.705,0.5]
[1771938218194,11.66533761,76.72,76.692,0.5]
[1771938219022,11.66533761,76.71,76.692,0.5]
[1771938219220,110.76506078,76.739,76.692,0.5]
[1771938219221,11.66533761,76.72,76.692,0.5]
[1771938219517,11.66533761,76.71,76.679,0.5]
[1771938221609,11.66533761,76.7,76.671,0.5]
[1771938222122,11.66533761,76.69,76.671,0.5]
[1771938223100,11.66533761,76.68,76.662,0.5]
[1771938223305,110.8083797,76.709,76.656,0.5]
[1771938223306,11.66533761,76.69,76.656,0.5]
[1771938223832,97.77209973,76.709,76.643,0.5]
[1771938223833,11.66533761,76.67,76.643,0.5]
[1771938224003,11.66533761,76.66,76.643,0.5]
[1771938224325,11.66533761,76.66,76.635,0.5]
[1771938225323,11.66533761,76.65,76.627,0.5]
[1771938226521,11.66533761,76.65,76.59,11.66533761]
[1771938226522,0.4565516,76.639,76.59,11.66533761]
[1771938226732,0.4565516,76.639,76.6,11.66533761]
[1771938227305,13.04835721,76.638,76.601,13.05465986]
[1771938227604,13.04835721,76.638,76.6,11.66533761]
[1771938227605,45.66925023,76.638,76.584,32.64368628]
[1771938227816,45.66925023,76.638,76.6,11.66533761]
[1771938228016,13.04835721,76.638,76.61,11.66533761]
[1771938228322,13.04835721,76.638,76.585,0.48260332]
[1771938228625,13.04835721,76.638,76.611,0.48260332]
[1771938229204,13.04682505,76.647,76.621,0.48260332]
[1771938231711,13.04682505,76.647,76.62,24.71665039]
[1771938231712,13.04580381,76.653,76.623,0.48260332]
[1771938232025,0.4565516,76.652,76.623,0.48260332]
[1771938233327,13.04580381,76.653,76.623,0.48260332]
[1771938234510,11.66533761,76.65,76.623,0.48260332]
[1771938234705,0.4565516,76.649,76.623,0.48260332]
[1771938234912,0.4565516,76.649,76.616,0.48260332]
[1771938236034,0.45625898,76.656,76.621,0.47078441]
[1771938236232,0.45625898,76.649,76.621,0.47078441]
[1771938236817,13.50289907,76.649,76.623,0.47078441]
[1771938237131,103.9,76.678,76.631,0.47078441]
[1771938237132,13.0449529,76.658,76.631,0.47078441]
[1771938238215,0.45625898,76.664,76.631,0.47078441]
[1771938238829,13.04308129,76.669,76.641,0.47078441]
[1771938240733,13.49934027,76.669,76.641,0.47078441]
[1771938240930,0.45625898,76.668,76.63,11.68930816]
[1771938241131,0.45625898,76.668,76.63,0.47078441]
[1771938241432,0.45625898,76.668,76.631,0.47078441]
[1771938242021,0.45625898,76.659,76.631,0.47078441]
[1771938242225,0.45625898,76.664,76.633,0.47078441]
[1771938242533,13.04376182,76.665,76.633,0.47078441]
[1771938243126,46.10942535,76.665,76.633,0.47078441]
[1771938243328,0.45625898,76.659,76.633,0.47078441]
[1771938244039,0.45625898,76.659,76.626,0.47078441]
[1771938244338,0.45625898,76.657,76.626,0.47078441]
[1771938246241,0.45625898,76.657,76.628,0.47078441]
[1771938246636,45.65733516,76.658,76.628,0.47078441]
[1771938247723,13.0449529,76.658,76.628,0.47078441]
[1771938247924,32.60882082,76.667,76.643,0.47078441]
[1771938248111,11.68930816,76.67,76.643,0.47078441]
[1771938249122,13.04308129,76.669,76.643,0.47078441]
[1771938249526,13.04308129,76.669,76.645,0.47078441]
[1771938249928,13.04172046,76.677,76.645,0.47078441]
[1771938251534,13.04172046,76.677,76.646,13.04699527]
[1771938251742,13.04172046,76.677,76.647,0.47078441]
[1771938252239,13.04114728,76.681,76.651,0.47078441]
[1771938253532,13.49644884,76.686,76.653,0.47078441]
[1771938254459,0.45625898,76.685,76.647,13.04667738]
[1771938254761,0.45625898,76.669,76.646,0.47078441]
[1771938255623,45.64066452,76.686,76.632,0.47078441]
[1771938255624,0.45625898,76.659,76.632,0.47078441]
[1771938255823,11.68930816,76.66,76.623,0.47078441]
[1771938256124,0.45625898,76.659,76.623,0.47078441]
[1771938258650,0.45625898,76.657,76.624,0.47078441]
[1771938260921,65.20392467,76.683,76.631,0.47078441]
[1771938260922,33.06533556,76.666,76.631,0.47078441]
[1771938261129,13.04376182,76.665,76.631,0.47078441]
[1771938262043,11.68930816,76.66,76.631,0.47078441]
[1771938262239,0.45625898,76.659,76.631,0.47078441]
[1771938263837,13.04488435,76.659,76.633,0.47078441]
[1771938265046,13.04393196,76.664,76.635,0.46773901]
[1771938267653,13.04393196,76.664,76.637,0.46773901]
[1771938269538,0.48095827,76.663,76.637,0.46773901]
[1771938270140,0.48095827,76.663,76.639,0.46773901]
[1771938271248,0.48095827,76.675,76.641,0.46773901]
[1771938271452,13.04087008,76.682,76.651,0.46773901]
[1771938271648,13.04087008,76.682,76.661,0.46773901]
[1771938275137,0.48095827,76.697,76.663,0.46773901]
[1771938275665,0.48095827,76.697,76.671,0.46773901]
[1771938277056,0.48095827,76.703,76.671,0.46773901]
[1771938277261,0.48095827,76.703,76.65,11.68930816]
[1771938277262,0.48095827,76.716,76.681,0.46773901]
[1771938277867,0.48095827,76.716,76.691,0.46773901]
[1771938280260,0.48095827,76.714,76.691,0.46773901]
[1771938281464,13.03356142,76.725,76.701,0.46773901]
[1771938281762,0.48095827,76.724,76.701,0.46773901]
[1771938282456,0.48095827,76.722,76.701,0.46773901]
[1771938284667,0.48095827,76.72,76.701,0.46773901]
[1771938286761,13.03424095,76.721,76.701,0.46773901]
[1771938286762,13.03458074,76.719,76.701,0.46773901]
[1771938287263,13.03458074,76.719,76.71,0.17677642]
[1771938287966,0.48095827,76.719,76.701,0.46773901]
[1771938288870,13.51451969,76.725,76.701,0.46773901]
[1771938290066,46.09842324,76.725,76.701,0.46773901]
[1771938290449,0.48095827,76.724,76.701,0.46773901]
[1771938291347,0.48095827,76.737,76.703,0.46773901]
[1771938291673,52.09346895,76.786,76.702,13.03746968]
[1771938291674,0.48095827,76.762,76.721,0.46773901]
[1771938291846,0.1,76.75,76.721,0.46773901]
[1771938292260,0.1,76.75,76.722,0.46773901]
[1771938296856,0.48554087,76.749,76.713,0.45259925]
[1771938298076,0.48554087,76.729,76.697,0.45259925]
[1771938298651,0.48554087,76.729,76.701,0.45259925]
[1771938298873,0.1,76.75,76.721,0.45259925]
[1771938298874,45.60320003,76.749,76.721,0.45259925]
[1771938299169,0.48554087,76.748,76.721,0.45259925]
[1771938300380,0.48554087,76.739,76.702,13.03746968]
[1771938300869,45.60320003,76.749,76.7,5.22546983]
[1771938300870,0.48554087,76.729,76.7,5.22546983]
[1771938301074,0.48554087,76.727,76.701,13.03763966]
[1771938301757,13.03305181,76.728,76.701,13.03763966]
[1771938301960,13.03148358,76.738,76.71,5.22546983]
[1771938302172,13.51702445,76.738,76.71,5.22546983]
[1771938302380,13.51702445,76.738,76.711,0.45259925]
[1771938304492,0.48554087,76.737,76.7,5.67806908]
[1771938304785,32.57519962,76.746,76.693,0.45259925]
[1771938304786,0.48554087,76.719,76.693,0.45259925]
[1771938305499,0.48554087,76.719,76.641,52.19113121]
[1771938305661,5.22546983,76.72,76.678,0.45259925]
[1771938305662,0.48554087,76.699,76.678,0.45259925]
[1771938307374,0.48554087,76.699,76.679,0.45259925]
[1771938308483,0.48554087,76.699,76.68,13.04121022]
[1771938308670,0.48554087,76.699,76.68,13.49380947]
[1771938309272,0.48554087,76.699,76.68,13.04121022]
[1771938309874,0.48554087,76.699,76.68,13.49380947]
[1771938310073,0.48554087,76.699,76.681,0.45259925]
[1771938310269,5.22546983,76.71,76.681,0.45259925]
[1771938310270,18.26172235,76.71,76.681,0.45259925]
[1771938310489,18.26172235,76.71,76.68,18.26668005]
[1771938310490,13.03625252,76.71,76.683,0.45259925]
[1771938311070,0.48554087,76.709,76.683,0.45259925]
[1771938313189,0.48554087,76.707,76.683,0.45259925]
[1771938313390,0.48554087,76.707,76.673,0.45259925]
[1771938314277,45.62757469,76.708,76.644,0.45259925]
[1771938314278,0.48554087,76.706,76.644,0.45259925]
[1771938314477,45.62757469,76.708,76.642,45.66686672]
[1771938314478,0.48554087,76.699,76.651,0.45259925]
[1771938314678,0.48554087,76.705,76.671,0.45259925]
[1771938316090,0.48554087,76.699,76.671,0.45259925]
[1771938316393,0.48554087,76.699,76.673,0.45259925]
[1771938320508,0.48554087,76.699,76.642,65.23838104]
[1771938320509,0.48554087,76.729,76.691,0.45259925]
[1771938321497,0.48554087,76.727,76.693,0.45259925]
[1771938322296,45.61568135,76.728,76.629,52.19905888]
[1771938322297,5.22546983,76.71,76.679,0.45259925]
[1771938322499,0.48554087,76.709,76.679,0.45259925]
[1771938323381,0.48554087,76.699,76.67,0.45259925]
[1771938326405,0.49281088,76.697,76.672,0.47397321]
[1771938327505,13.03848962,76.696,76.672,0.47397321]
[1771938328203,13.5313005,76.696,76.672,0.47397321]
[1771938328406,0.49281088,76.689,76.657,0.47397321]
[1771938329491,13.03984978,76.688,76.658,13.04478867]
[1771938329690,0.49281088,76.687,76.661,0.47397321]
[1771938332302,0.49281088,76.685,76.661,13.51836296]
[1771938333413,13.04018986,76.686,76.641,0.47397321]
[1771938333414,0.49281088,76.679,76.641,0.47397321]
[1771938334294,103.9,76.709,76.635,0.47397321]
[1771938334295,0.49281088,76.669,76.635,0.47397321]
[1771938334489,0.49281088,76.669,76.597,52.22073698]
[1771938334490,0.49281088,76.669,76.603,13.05431902]
[1771938334711,0.49281088,76.639,76.611,0.47397321]
[1771938334889,0.49281088,76.656,76.621,0.47397321]
[1771938337214,0.49281088,76.654,76.621,0.47397321]
[1771938337795,0.49281088,76.654,76.622,0.47397321]
[1771938338314,0.49281088,76.654,76.631,0.47397321]
[1771938338495,0.49281088,76.654,76.622,0.47397321]
[1771938340797,0.49281088,76.652,76.623,0.47397321]
[1771938341001,13.04580381,76.653,76.631,0.47397321]
[1771938342507,0.49281088,76.652,76.631,0.47397321]
[1771938342909,0.49281088,76.65,76.631,0.47397321]
[1771938343818,0.38701676,76.633,76.631,0.47397321]
[1771938344020,0.01337019,76.633,76.631,0.47397321]
[1771938344811,0.01337019,76.633,76.621,0.47397321]
[1771938345025,0.49281088,76.631,76.606,13.05364658]
[1771938345321,13.04937884,76.632,76.6,5.32546983]
[1771938345322,0.49281088,76.629,76.6,0.1]
[1771938345504,0.49281088,76.629,76.602,0.47397321]
[1771938345825,0.49281088,76.629,76.601,13.52863307]
[1771938346002,13.54287091,76.628,76.604,0.47397321]
[1771938347023,13.05006003,76.628,76.611,0.47397321]
[1771938348016,0.49281088,76.625,76.605,0.47397321]
[1771938348222,13.05040064,76.626,76.605,0.47397321]
[1771938348721,13.54321152,76.626,76.605,0.47397321]
[1771938348912,0.49281088,76.625,76.6,0.57397321]
[1771938349112,0.49281088,76.619,76.59,0.1]
[1771938349414,0.49281088,76.609,76.59,0.1]
[1771938350228,0.49281088,76.607,76.59,0.1]
[1771938350910,13.0529533,76.612,76.591,0.47397321]
[1771938351821,0.49281088,76.611,76.591,0.47397321]
[1771938352221,13.05312622,76.61,76.591,0.47397321]
[1771938352519,13.05312622,76.61,76.58,0.1]
[1771938352520,0.49281088,76.609,76.58,0.1]
[1771938352713,0.49281088,76.599,76.58,0.57397321]
[1771938352902,0.49281088,76.606,76.58,0.57397321]
[1771938353101,0.49281088,76.606,76.582,0.47397321]
[1771938353309,13.05312622,76.61,76.582,0.47397321]
[1771938354308,0.49281088,76.612,76.584,0.47397321]
[1771938355609,13.05218704,76.616,76.586,0.47020238]
[1771938355918,0.49088061,76.619,76.591,0.47020238]
[1771938356501,13.05129448,76.621,76.591,0.47020238]
[1771938357829,0.49088061,76.623,76.593,0.47020238]
[1771938358714,0.49088061,76.619,76.592,13.05619385]
[1771938359902,13.05176329,76.618,76.591,0.47020238]
[1771938360108,0.49088061,76.617,76.591,0.47020238]
[1771938360509,13.05110243,76.622,76.591,0.47020238]
[1771938360710,13.54198304,76.622,76.591,0.47020238]
[1771938360909,0.49088061,76.621,76.591,0.47020238]
[1771938361137,0.49088061,76.621,76.585,32.64346804]
[1771938361138,5.24264085,76.64,76.601,0.47020238]
[1771938361433,0.49088061,76.641,76.611,0.47020238]
[1771938361630,52.15871898,76.689,76.62,5.24264085]
[1771938361810,5.24264085,76.65,76.621,0.47020238]
[1771938362130,0.49088061,76.647,76.612,0.47020238]
[1771938362928,5.24264085,76.63,76.601,0.47020238]
[1771938363117,0.49088061,76.629,76.601,0.47020238]
[1771938363527,0.49088061,76.629,76.592,0.47020238]
[1771938364110,0.49088061,76.627,76.592,0.47020238]
[1771938364323,0.49088061,76.619,76.592,0.47020238]
[1771938365223,0.49088061,76.627,76.594,0.47020238]
[1771938365528,0.49088061,76.627,76.601,0.47020238]
[1771938366834,0.49088061,76.627,76.603,0.47020238]
[1771938367127,13.54119629,76.627,76.603,0.47020238]
[1771938371032,13.54119629,76.627,76.605,0.47020238]
[1771938375941,0.49088061,76.626,76.605,0.47020238]
[1771938376841,0.49088061,76.626,76.607,0.47020238]
[1771938377048,103.9,76.661,76.606,13.05380779]
[1771938377049,65.20886896,76.677,76.611,0.47020238]
[1771938377238,5.24264085,76.67,76.631,0.47020238]
[1771938378142,5.24264085,76.68,76.641,0.47020238]
[1771938379034,45.64542631,76.678,76.641,0.47020238]
[1771938379239,0.49088061,76.677,76.641,0.47020238]
[1771938380846,0.49088061,76.677,76.642,0.47020238]
[1771938381150,0.49088061,76.677,76.651,0.47020238]
[1771938381324,13.53277116,76.676,76.651,0.47020238]
[1771938382230,0.49088061,76.675,76.651,0.47020238]
[1771938382631,13.04189055,76.676,76.651,0.47020238]
[1771938382632,0.49088061,76.673,76.651,0.47020238]
[1771938383951,0.49088061,76.673,76.642,13.04762483]
[1771938384741,0.45727746,76.669,76.63,5.24264085]
[1771938384942,0.45727746,76.659,76.631,0.48188238]
[1771938385851,0.45727746,76.659,76.625,0.48188238]
[1771938387947,0.45125108,76.657,76.625,0.48188238]
[1771938389843,0.45125108,76.655,76.625,0.48188238]
[1771938390157,0.45125108,76.649,76.621,13.53313464]
[1771938390458,0.45125108,76.649,76.622,0.48188238]
[1771938392864,0.45125108,76.647,76.624,0.48188238]
[1771938397270,0.45125108,76.653,76.631,0.48188238]
[1771938397745,0.45125108,76.653,76.622,13.0510043]
[1771938397746,0.45125108,76.653,76.623,0.48188238]
[1771938399541,13.04597401,76.652,76.623,0.48188238]
[1771938399745,0.45125108,76.651,76.623,0.48188238]
[1771938400456,0.45125108,76.651,76.625,0.48188238]
[1771938401652,0.45125108,76.662,76.631,0.48188238]
[1771938404544,45.65554844,76.661,76.631,0.48188238]
[1771938404743,0.45125108,76.659,76.631,0.48188238]
[1771938404950,0.45125108,76.659,76.633,0.48188238]
[1771938406659,13.0449529,76.658,76.633,0.48188238]
[1771938406855,0.45125108,76.657,76.634,0.48188238]
[1771938407569,0.45125108,76.657,76.63,0.48188238]
[1771938407761,0.45125108,76.657,76.61,5.24264085]
[1771938408458,0.45125108,76.657,76.61,50.92858262]
[1771938408857,0.45125108,76.655,76.62,5.24264085]
[1771938409765,0.45125108,76.655,76.621,0.48188238]
[1771938411374,0.45125108,76.653,76.622,0.48188238]
[1771938413165,32.61408406,76.654,76.624,0.48188238]
[1771938413667,0.45125108,76.653,76.624,0.48188238]
[1771938415478,0.49581108,76.651,76.624,0.48188238]
[1771938416584,0.49581108,76.649,76.624,0.48188238]
[1771938417572,0.49581108,76.649,76.626,0.47645542]
[1771938418682,0.49581108,76.66,76.63,5.24264085]
[1771938418988,0.49581108,76.677,76.641,0.47645542]
[1771938419182,0.49581108,76.677,76.627,45.67580617]
[1771938419183,0.49581108,76.677,76.65,5.24264085]
[1771938419385,0.49581108,76.677,76.651,0.47645542]
[1771938420688,0.49581108,76.675,76.646,0.47645542]
[1771938421274,0.49581108,76.669,76.632,0.47645542]
[1771938421470,0.49581108,76.659,76.632,0.47645542]
[1771938421785,0.49581108,76.659,76.621,0.47645542]
[1771938422380,0.49581108,76.675,76.641,0.47645542]
[1771938422684,0.49581108,76.673,76.651,0.47645542]
[1771938422886,0.49581108,76.669,76.63,5.23664957]
[1771938423074,0.49581108,76.669,76.616,65.25992063]
[1771938423075,0.49581108,76.669,76.64,5.23664957]
[1771938423276,0.49581108,76.669,76.65,5.23664957]
[1771938424887,0.49581108,76.667,76.65,5.23664957]
[1771938427789,0.49581108,76.672,76.65,5.60248894]
[1771938428982,0.49581108,76.67,76.65,5.60248894]
[1771938429498,0.49581108,76.67,76.65,5.23664957]
[1771938429898,13.04274106,76.671,76.651,0.36583937]
[1771938430198,0.49581108,76.684,76.661,0.36583937]
[1771938430987,145.3452877,76.913,76.651,45.66150474]
[1771938430988,0.49581108,76.698,76.671,0.36583937]
[1771938432082,0.49581108,76.696,76.671,0.36583937]
[1771938432507,13.0369814,76.705,76.69,5.23664957]
[1771938432990,13.0369814,76.705,76.687,0.36583937]
[1771938433186,0.49581108,76.704,76.681,0.36583937]
[1771938435288,13.03729971,76.703,76.681,0.36583937]
[1771938436896,32.79029723,76.71,76.64,57.42846657]
[1771938436897,0.69581108,76.71,76.691,0.36583937]
[1771938438004,0.49581108,76.727,76.701,0.36583937]
[1771938438194,0.49581108,76.727,76.71,5.23664957]
[1771938438505,0.2,76.73,76.72,5.60248894]
[1771938438700,0.49581108,76.741,76.71,5.23664957]
[1771938438881,0.49581108,76.739,76.71,5.23664957]
[1771938439306,0.49581108,76.739,76.711,13.20177945]
[1771938439601,0.49581108,76.739,76.712,0.16583937]
[1771938439986,0.49581108,76.739,76.72,5.23664957]
[1771938440186,0.1,76.75,76.73,5.23664957]
[1771938440395,0.1,76.75,76.74,5.23664957]
[1771938440702,0.1,76.75,76.73,5.40248894]
[1771938441388,0.1,76.75,76.731,13.03254225]
[1771938441586,0.1,76.75,76.732,0.16583937]
[1771938441788,0.1,76.75,76.74,5.23664957]
[1771938446405,0.1,76.75,76.741,13.030844]
[1771938447709,0.1,76.75,76.74,5.23664957]
[1771938447917,0.1,76.75,76.741,13.030844]
[1771938448116,0.2,76.76,76.742,0.06583937]
[1771938448409,0.2,76.76,76.75,5.23664957]
[1771938449635,0.2,76.76,76.721,110.79104807]
[1771938449636,0.46708031,76.759,76.74,5.23664957]
[1771938449809,0.46708031,76.759,76.741,0.06583937]
[1771938450013,0.2,76.76,76.741,0.06583937]
[1771938450512,0.2,76.76,76.741,13.09668337]
[1771938450913,0.46708031,76.759,76.741,13.030844]
[1771938452115,0.2,76.76,76.742,0.06583937]
[1771938452304,0.66708031,76.76,76.742,0.06583937]
[1771938452515,0.46708031,76.759,76.74,5.23664957]
[1771938452910,0.46708031,76.759,76.722,0.06583937]
[1771938453215,0.46708031,76.759,76.73,5.23664957]
[1771938454304,0.46708031,76.758,76.731,13.03254225]
[1771938454817,0.2,76.76,76.75,5.23664957]
[1771938455032,0.66708031,76.77,76.75,5.30248894]
[1771938456421,0.66708031,76.77,76.751,13.0291462]
[1771938456595,0.46708031,76.768,76.738,0.06583937]
[1771938456799,0.46708031,76.768,76.73,5.23664957]
[1771938458719,0.46708031,76.739,76.71,5.23664957]
[1771938458928,0.46708031,76.739,76.7,5.30248894]
[1771938459502,0.46708031,76.729,76.7,5.30248894]
[1771938460826,0.46708031,76.729,76.71,5.23664957]
[1771938463027,0.46708031,76.729,76.711,13.03594008]
[1771938464316,0.46708031,76.729,76.7,5.30248894]
[1771938465711,0.46708031,76.727,76.69,5.30248894]
[1771938465912,0.46708031,76.727,76.69,5.23664957]
[1771938466335,0.46708031,76.725,76.691,13.03933968]
[1771938466524,0.46708031,76.719,76.652,0.06583937]
[1771938466818,0.46708031,76.719,76.681,0.06583937]
[1771938468432,0.46708031,76.717,76.68,5.23664957]
[1771938469715,0.46708031,76.709,76.68,5.23664957]
[1771938469915,0.46708031,76.709,76.676,0.06583937]
[1771938470831,0.46708031,76.707,76.68,5.23664957]
[1771938471228,0.46708031,76.707,76.681,0.06583937]
[1771938472510,13.03678982,76.706,76.681,13.04104015]
[1771938472835,0.46708031,76.705,76.681,13.04104015]
[1771938473040,0.46708031,76.705,76.682,0.06583937]
[1771938475813,0.48224233,76.711,76.691,0.06583937]
[1771938476438,0.48224233,76.711,76.69,5.23664957]
[1771938477825,0.48224233,76.711,76.691,13.03933968]
[1771938480833,0.48224233,76.716,76.7,5.23664957]
[1771938481031,13.03288196,76.729,76.701,0.49262455]
[1771938481633,13.03152325,76.737,76.711,0.49262455]
[1771938483035,0.48224233,76.736,76.712,13.03577015]
[1771938483238,0.48224233,76.736,76.712,13.5283947]
[1771938483418,13.0318629,76.735,76.712,13.5283947]
[1771938483618,0.48224233,76.734,76.712,13.03577015]
[1771938485548,0.48224233,76.742,76.715,0.49262455]
[1771938485844,0.48224233,76.756,76.721,0.49262455]
[1771938486424,0.48224233,76.756,76.73,5.71790394]
[1771938486829,0.48224233,76.756,76.731,0.49262455]
[1771938487050,0.48224233,76.799,76.751,0.0480817]
[1771938487225,0.48224233,76.799,76.77,5.27336109]
[1771938487424,0.2,76.8,76.781,0.0480817]
[1771938487651,0.2,76.8,76.781,13.07213713]
[1771938487835,0.2,76.8,76.79,5.22527939]
[1771938488548,0.48224233,76.811,76.79,5.22527939]
[1771938489134,0.48224233,76.809,76.79,5.22527939]
[1771938489533,0.48224233,76.815,76.79,5.22527939]
[1771938489942,0.48224233,76.815,76.791,13.02235939]
[1771938491145,0.48224233,76.813,76.79,5.22527939]
[1771938491537,0.48224233,76.813,76.79,18.24770253]
[1771938491728,0.48224233,76.813,76.79,5.22527939]
[1771938491926,0.48224233,76.811,76.79,5.22527939]
[1771938492131,0.48224233,76.811,76.782,13.0238858]
[1771938492332,0.48224233,76.811,76.78,5.22527939]
[1771938492548,0.48224233,76.811,76.781,13.02405543]
[1771938493245,0.48224233,76.811,76.79,5.22527939]
[1771938494542,0.48224233,76.809,76.78,5.22527939]
[1771938494844,0.48224233,76.809,76.79,5.22527939]
[1771938495246,0.48224233,76.809,76.78,0.0480817]
[1771938495438,0.48224233,76.809,76.78,5.27336109]
[1771938496431,12.36019705,76.81,76.79,5.22527939]
[1771938497036,0.2,76.83,76.791,0.49262455]
[1771938497240,13.01591846,76.829,76.81,5.22527939]
[1771938497950,13.01591846,76.829,76.806,0.49262455]
[1771938498446,45.55571463,76.829,76.793,0.49262455]
[1771938498656,0.48224233,76.826,76.794,0.49262455]
[1771938498838,0.48224233,76.819,76.782,0.49262455]
[1771938499451,0.48224233,76.819,76.78,5.22527939]
[1771938499452,5.22527939,76.81,76.78,5.22527939]
[1771938499661,0.48224233,76.809,76.77,5.22527939]
[1771938500128,0.48224233,76.799,76.77,5.22527939]
[1771938500639,0.48224233,76.797,76.771,13.02575191]
[1771938503050,13.02151153,76.796,76.771,13.02575191]
[1771938503256,0.48224233,76.795,76.771,13.02575191]
[1771938503635,0.48224233,76.795,76.771,13.51837646]
[1771938504465,0.48224233,76.795,76.767,13.02643053]
[1771938504757,0.48224233,76.795,76.77,5.22527939]
[1771938505661,0.46681796,76.793,76.76,5.22527939]
[1771938505842,0.46681796,76.793,76.761,0.45737166]
[1771938506044,13.02185066,76.794,76.771,0.45737166]
[1771938506348,0.46681796,76.799,76.771,0.45737166]
[1771938507758,0.46681796,76.797,76.772,13.4829539]
[1771938508454,0.46681796,76.797,76.762,13.48452732]
[1771938508640,0.46681796,76.789,76.762,13.48452732]
[1771938509157,0.46681796,76.789,76.762,0.45737166]
[1771938509547,0.46681796,76.789,76.757,0.45737166]
[1771938509741,5.22527939,76.79,76.757,0.45737166]
[1771938509742,0.46681796,76.787,76.757,0.45737166]
[1771938511559,0.46681796,76.785,76.757,0.45737166]
[1771938513263,0.46681796,76.785,76.759,0.45737166]
[1771938513560,0.46681796,76.785,76.761,0.45737166]
[1771938514249,13.49036453,76.784,76.761,0.45737166]
[1771938514565,0.46681796,76.783,76.761,0.45737166]
[1771938515063,0.46681796,76.783,76.755,0.45737166]
[1771938515461,0.46681796,76.769,76.738,13.03135343]
[1771938515669,0.46681796,76.769,76.731,13.48991391]
[1771938515963,0.46681796,76.759,76.731,13.48991391]
[1771938516365,0.46681796,76.757,76.731,13.48991391]
[1771938517186,0.46681796,76.757,76.731,13.03254225]
[1771938517954,0.46681796,76.763,76.741,0.45737166]
[1771938519049,0.46681796,76.763,76.742,13.0306742]
[1771938519966,13.02656995,76.767,76.743,0.45737166]
[1771938520563,13.02656995,76.767,76.744,13.03033461]
[1771938520871,13.02656995,76.767,76.745,0.45737166]
[1771938521569,13.02509084,76.775,76.751,0.45737166]
[1771938521767,13.4919088,76.775,76.751,0.45737166]
[1771938522145,0.46681796,76.774,76.751,0.45737166]
[1771938522549,0.2,76.767,76.751,0.45737166]
[1771938523553,0.2,76.757,76.751,0.45737166]
[1771938523961,0.46681796,76.756,76.74,13.03100986]